bitfinex/quotes_SOLUSD_20240926
["timestamp","ask_amount","ask_price","bid_price","bid_amount"]
[1727362987670,0.5760483,153.88,153.83,52.95861935]
[1727362987874,0.5760483,153.88,153.87,6.4989]
[1727362988078,0.5760483,153.88,153.87,8.0491228]
[1727362988280,0.5760483,153.88,153.87,31.8260068]
[1727362988488,0.1138566,153.9,153.89,30.525964]
[1727362988688,0.1138566,153.9,153.89,83.48458335]
[1727362988982,7.0707483,153.97,153.94,52.95861935]
[1727362988983,0.5760483,153.97,153.94,52.95861935]
[1727362989685,0.5760483,153.97,153.95,1.29875164]
[1727362990894,0.5760483,153.97,153.96,6.4951]
[1727362991097,0.1138566,153.99,153.97,16.2365]
[1727362991316,0.1138566,153.99,153.95,52.95861935]
[1727362991506,0.1138566,153.99,153.95,59.45411935]
[1727362991988,6.4914,154.05,153.99,6.61939]
[1727362992194,0.5760483,154.06,153.99,6.61939]
[1727362992195,0.5760483,154.06,154.01,52.95861935]
[1727362992393,0.5760483,154.06,154.01,59.45141935]
[1727362992652,0.5760483,154.06,154.02,16.48228]
[1727362992927,0.5760483,154.06,154.01,52.95861935]
[1727362993088,0.5760483,154.06,154.01,59.45151935]
[1727362993295,0.5760483,154.06,154.02,6.61809]
[1727362993503,0.5760483,154.06,154.03,1.29788284]
[1727362993716,0.5760483,154.06,154.05,6.4913]
[1727362994014,0.5760483,154.06,154.02,0.12549]
[1727362994015,0.5760483,154.06,154.03,22.7225]
[1727362994322,0.5760483,154.06,154.04,0.12549]
[1727362994499,0.5760483,154.06,154.05,6.4913]
[1727362994826,0.5760483,154.06,154.05,59.44991935]
[1727362995195,0.1138566,154.09,154.05,78.28419162]
[1727362995500,0.1138566,154.09,154.08,59.44871935]
[1727362995697,0.1138566,154.09,154.08,52.95861935]
[1727362995900,0.1138566,154.09,154.08,59.44871935]
[1727362996101,0.1138566,154.09,154.08,60.7462149]
[1727362996322,0.1138566,154.09,154.08,83.47658335]
[1727362996621,0.5760483,154.15,154.09,40.251064]
[1727362996822,0.5760483,154.15,154.11,52.95861935]
[1727362996995,0.5760483,154.15,154.12,6.4882]
[1727362997310,7.0632483,154.15,154.09,16.34869]
[1727362997511,0.5760483,154.15,154.09,22.7128]
[1727362997715,6.488,154.13,154.07,6.4901]
[1727362997918,6.4894,154.1,154.05,16.2278]
[1727362998589,20.0,154.13,154.01,16.2317]
[1727362998789,6.4899,154.09,154.03,6.4921]
[1727362999540,6.4923,154.03,153.97,22.7305]
[1727362999816,21.7457,154.08,154.0,16.2337]
[1727363000009,21.7457,154.08,153.97,6.4947]
[1727363000010,6.4922,154.03,153.97,6.4947]
[1727363000411,6.4922,154.03,153.98,6.4943]
[1727363000613,20.0,154.07,153.96,22.7321]
[1727363000800,6.4915,154.05,153.99,7.79205101]
[1727363001128,6.4915,154.05,153.99,6.4937]
[1727363001300,20.0,154.07,153.98,6.4943]
[1727363001503,22.2458483,154.15,154.01,52.95861935]
[1727363001822,22.2458483,154.15,154.08,6.4899]
[1727363002017,22.2458483,154.15,154.09,1.29769493]
[1727363002219,6.4885,154.12,154.06,22.7176]
[1727363002835,6.4893,154.1,154.04,59.45001935]
[1727363003005,1.577906,154.14,154.02,22.7229]
[1727363003006,6.4897,154.09,154.02,22.7229]
[1727363003405,6.4897,154.09,154.03,6.492]
[1727363004113,45.60577,154.13,153.98,69.19341935]
[1727363004314,6.4915,154.05,153.98,75.68741935]
[1727363004625,6.4909,154.06,154.0,6.4933]
[1727363005415,16.2222,154.11,154.0,6.4933]
[1727363005724,16.2222,154.11,153.96,32.4738]
[1727363005725,6.4931,154.01,153.95,59.45381935]
[1727363006507,22.2484,154.04,153.94,16.2392]
[1727363006709,1.577906,154.03,153.94,16.2392]
[1727363007030,22.2484,154.04,153.95,1.29862529]
[1727363007209,22.2484,154.04,153.95,54.25724464]
[1727363007616,22.2484,154.04,153.98,52.95861935]
[1727363007812,6.4905,154.07,154.01,6.493]
[1727363008017,6.491,154.06,154.02,1.29818558]
[1727363008427,21.9228,154.09,154.01,52.95861935]
[1727363008631,21.9228,154.09,154.0,22.7265]
[1727363008809,1.577906,154.08,153.96,16.2369]
[1727363009014,21.9228,154.09,153.97,6.4947]
[1727363009015,16.2266,154.07,153.97,6.4947]
[1727363009314,6.4922,154.03,153.97,6.4947]
[1727363010036,16.2266,154.07,153.96,16.2369]
[1727363010236,20.0,154.08,153.96,16.2369]
[1727363010528,6.491,154.06,154.0,6.4932]
[1727363010838,21.9228,154.09,153.98,52.95861935]
[1727363011014,6.4914,154.05,154.0,16.2329]
[1727363011331,6.4919,154.04,153.99,6.4938]
[1727363011518,21.9228,154.09,153.97,16.2367]
[1727363011519,1.577906,154.08,153.97,16.2367]
[1727363011731,6.4932,154.01,153.95,52.95861935]
[1727363011927,6.4932,154.01,153.95,6.4956]
[1727363012532,20.0,154.05,153.96,6.4947]
[1727363012728,20.0,154.05,153.94,16.2399]
[1727363012918,6.4927,154.02,153.97,6.4946]
[1727363013621,6.4931,154.01,153.96,6.495]
[1727363014137,20.0,154.05,153.97,1.298607]
[1727363014440,6.4917,154.05,153.98,52.95861935]
[1727363014608,6.4907,154.07,154.01,16.2326]
[1727363014927,6.4906,154.07,154.02,6.4925]
[1727363015130,21.9228,154.09,154.02,6.4925]
[1727363015314,6.4902,154.08,154.03,6.492]
[1727363015633,21.9228,154.09,154.04,1.29804592]
[1727363015828,6.4901,154.08,154.04,1.29804592]
[1727363016012,21.9228,154.09,154.05,6.4912]
[1727363016211,21.9228,154.09,154.06,1.29791168]
[1727363016408,28.4125,154.09,154.06,1.29791168]
[1727363016813,28.4125,154.09,154.04,6.4917]
[1727363017817,6.4909,154.07,154.05,1.29791258]
[1727363018026,6.4902,154.08,154.03,6.492]
[1727363018208,6.4885,154.12,154.05,1.29795743]
[1727363018411,6.4882,154.13,154.08,6.4901]
[1727363018734,6.4882,154.13,154.09,1.29760885]
[1727363019222,28.3929,154.14,154.09,7.78690885]
[1727363019614,21.9053,154.14,154.1,6.4892]
[1727363019821,28.3929,154.14,154.11,1.29750074]
[1727363020410,21.9053,154.14,154.11,1.29750074]
[1727363020743,21.9053,154.14,154.08,16.2245]
[1727363021249,28.3932,154.14,154.09,6.4896]
[1727363021444,6.4883,154.13,154.08,22.7145]
[1727363022150,21.9053,154.14,154.1,6.4889]
[1727363022319,15.8086,154.14,154.11,7.78625948]
[1727363022515,0.5760483,154.15,154.11,7.78625948]
[1727363023244,7.0632483,154.15,154.11,1.29745948]
[1727363023751,7.0632483,154.15,154.1,59.44781935]
[1727363023956,7.0632483,154.15,154.11,1.29741625]
[1727363024249,0.5760483,154.15,154.11,1.29741625]
[1727363024539,6.4884,154.12,154.08,6.49]
[1727363024746,0.5760483,154.15,154.11,16.2215]
[1727363024919,7.0632483,154.15,154.11,16.2215]
[1727363025249,6.4881,154.13,154.08,22.7147]
[1727363025414,0.5760483,154.15,154.08,16.2247]
[1727363025617,0.5760483,154.15,154.08,22.7148]
[1727363025928,6.488,154.13,154.09,7.78718608]
[1727363026127,0.5760483,154.15,154.07,52.95861935]
[1727363026333,6.488,154.14,154.09,6.4897]
[1727363026527,0.5760483,154.15,154.1,54.25609844]
[1727363026847,7.0632483,154.15,154.1,59.44751935]
[1727363027221,7.0632483,154.15,154.11,1.29738907]
[1727363027222,0.5760483,154.15,154.11,1.29738907]
[1727363027427,0.5760483,154.15,154.11,17.51888907]
[1727363027629,0.5760483,154.15,154.13,6.4879]
[1727363027843,0.5760483,154.15,154.14,6.4876]
[1727363028143,0.5760483,154.15,154.14,7.7847199]
[1727363028624,0.5760483,154.15,154.14,1.2971199]
[1727363028848,0.5760483,154.15,154.11,22.7102]
[1727363029057,0.5760483,154.15,154.08,69.18371935]
[1727363029235,6.4885,154.12,154.08,69.18371935]
[1727363029743,6.4892,154.11,154.06,6.4908]
[1727363029955,0.5760483,154.15,154.05,52.95861935]
[1727363030144,6.4884,154.12,154.07,6.4904]
[1727363030354,0.5760483,154.15,154.06,16.2268]
[1727363030355,6.4881,154.13,154.08,7.78766801]
[1727363030655,6.4881,154.13,154.08,6.49]
[1727363031028,6.4876,154.14,154.09,7.78714071]
[1727363031252,0.5760483,154.15,154.09,7.78714071]
[1727363031253,0.5760483,154.15,154.11,52.95861935]
[1727363031460,0.5760483,154.15,154.12,1.29731748]
[1727363031847,7.0633483,154.15,154.11,59.44711935]
[1727363032057,7.0633483,154.15,154.11,52.95861935]
[1727363032058,0.5760483,154.15,154.11,52.95861935]
[1727363032355,0.5760483,154.15,154.14,6.4876]
[1727363032562,0.5760483,154.15,154.13,22.7076]
[1727363032738,0.5760483,154.15,154.14,7.78470657]
[1727363032941,0.5760483,154.15,154.14,7.78469679]
[1727363033555,0.5760483,154.15,154.14,60.99429614]
[1727363034260,0.5760483,154.15,154.14,83.47408335]
[1727363034435,0.1138566,154.18,154.17,6.4863]
[1727363034754,0.1138566,154.18,154.17,59.44491935]
[1727363035272,0.1138566,154.18,154.17,60.74172053]
[1727363035435,0.1138566,154.18,154.17,60.99270053]
[1727363036071,15.1702,154.24,154.2,59.44351935]
[1727363036367,0.5760483,154.25,154.2,59.44331935]
[1727363037239,0.5760483,154.25,154.21,1.29651555]
[1727363037558,0.5760483,154.25,154.21,7.78081555]
[1727363037733,0.5760483,154.25,154.23,52.95861935]
[1727363037937,0.5760483,154.25,154.24,1.29630262]
[1727363038241,0.5760483,154.25,154.24,7.77970262]
[1727363038947,0.5760483,154.25,154.23,59.44231935]
[1727363039144,0.5760483,154.25,154.24,1.29626176]
[1727363039975,0.5760483,154.25,154.24,7.77966176]
[1727363040145,0.5760483,154.25,154.24,8.03064176]
[1727363040345,0.5760483,154.25,154.24,6.4834]
[1727363040665,0.5760483,154.25,154.16,52.95861935]
[1727363040863,0.5760483,154.25,154.17,6.4862]
[1727363040864,6.4842,154.22,154.17,6.4862]
[1727363041560,0.5760483,154.25,154.14,6.4875]
[1727363041561,6.4855,154.19,154.14,6.4875]
[1727363041941,6.5777,154.23,154.15,17.51400585]
[1727363042271,6.5777,154.23,154.15,22.7038]
[1727363042443,6.5777,154.23,154.17,52.95861935]
[1727363042638,0.5760483,154.25,154.22,6.4842]
[1727363042858,0.5760483,154.25,154.2,52.95861935]
[1727363043171,0.5760483,154.25,154.22,6.4841]
[1727363043460,0.5760483,154.25,154.2,52.95861935]
[1727363043461,0.5760483,154.25,154.2,59.44321935]
[1727363043658,6.4838,154.23,154.19,0.12549]
[1727363043867,6.4843,154.22,154.19,1.29663912]
[1727363044052,0.5760483,154.25,154.19,1.29663912]
[1727363044565,0.5760483,154.25,154.18,20.0]
[1727363044768,0.5760483,154.25,154.24,6.4834]
[1727363045071,0.5760483,154.25,154.24,7.90503639]
[1727363045267,0.5760483,154.25,154.24,31.80741039]
[1727363045869,0.5760483,154.25,154.24,8.03048195]
[1727363046271,0.5760483,154.25,154.24,6.73438]
[1727363046867,0.5760483,154.25,154.23,6.4836]
[1727363047771,0.5760483,154.25,154.24,1.29635396]
[1727363048069,0.5760483,154.25,154.23,6.4836]
[1727363048250,0.5760483,154.25,154.24,1.29634876]
[1727363048450,0.5760483,154.25,154.23,6.4836]
[1727363048649,0.5760483,154.25,154.21,16.211]
[1727363048650,7.0590483,154.25,154.21,16.211]
[1727363048852,0.5760483,154.25,154.2,0.12549]
[1727363049154,7.0592483,154.25,154.2,6.4847]
[1727363049353,6.4837,154.24,154.19,6.4851]
[1727363049566,6.4837,154.24,154.18,16.2144]
[1727363049780,6.4837,154.24,154.19,6.4854]
[1727363049952,0.5760483,154.25,154.21,6.4845]
[1727363050268,0.5760483,154.25,154.14,52.95861935]
[1727363050454,15.1662,154.23,154.14,52.95861935]
[1727363050652,6.4846,154.21,154.16,6.4864]
[1727363050853,6.4846,154.22,154.17,6.4862]
[1727363051156,6.4847,154.21,154.16,22.7028]
[1727363051364,6.4843,154.22,154.17,6.4861]
[1727363051555,15.1662,154.23,154.19,6.4854]
[1727363051867,15.1662,154.23,154.2,1.29665576]
[1727363052653,6.114,154.24,154.2,1.29665576]
[1727363052965,6.114,154.24,154.21,6.60969]
[1727363053266,0.5760483,154.25,154.21,6.60969]
[1727363053461,0.5760483,154.25,154.21,0.12549]
[1727363053665,0.5760483,154.25,154.22,6.484]
[1727363054061,7.0593483,154.25,154.2,22.697]
[1727363054260,0.5760483,154.25,154.22,0.12549]
[1727363054467,0.5760483,154.25,154.24,30.511264]
[1727363055261,0.5760483,154.25,154.24,31.80718367]
[1727363055575,0.5760483,154.25,154.24,30.511264]
[1727363055772,0.5760483,154.25,154.24,6.73438]
[1727363056454,0.5760483,154.25,154.24,6.4834]
[1727363057082,0.5760483,154.25,154.24,26.4834]
[1727363057959,0.5760483,154.25,154.24,26.73438]
[1727363058362,0.5760483,154.25,154.24,51.80732392]
[1727363058989,0.1138566,154.27,154.25,44.027864]
[1727363059191,0.5760483,154.34,154.32,6.4797]
[1727363059483,0.5760483,154.34,154.31,16.2004]
[1727363059668,0.5760483,154.34,154.29,6.4809]
[1727363059872,6.4801,154.32,154.27,6.4818]
[1727363060077,6.4801,154.32,154.28,6.4816]
[1727363060268,0.5760483,154.34,154.26,20.12549]
[1727363060469,0.5760483,154.34,154.24,32.32137031]
[1727363060683,6.481,154.3,154.26,16.2055]
[1727363060862,6.481,154.3,154.19,59.08726495]
[1727363060863,23.776884,154.33,154.23,16.209]
[1727363061382,6.4809,154.3,154.26,6.4825]
[1727363061772,6.482,154.28,154.23,22.6924]
[1727363062083,6.4813,154.29,154.24,6.4833]
[1727363062265,6.4809,154.3,154.25,7.77899108]
[1727363062464,0.5760483,154.34,154.25,16.2069]
[1727363062665,6.4816,154.29,154.25,22.6897]
[1727363062981,6.4809,154.3,154.25,22.6897]
[1727363063164,6.4809,154.3,154.26,6.4824]
[1727363063477,6.4809,154.3,154.25,16.2069]
[1727363063657,6.4809,154.3,154.25,22.6894]
[1727363064193,16.2347,154.28,154.22,16.2102]
[1727363064378,6.4822,154.27,154.22,22.6943]
[1727363064763,21.3923,154.33,154.26,16.2059]
[1727363065067,21.3923,154.33,154.27,33.61731203]
[1727363065273,21.3923,154.33,154.3,6.4804]
[1727363065460,21.3923,154.33,154.31,1.29586421]
[1727363065662,6.4804,154.32,154.28,16.2037]
[1727363065863,21.3923,154.33,154.25,16.33229]
[1727363066083,21.3923,154.33,154.29,6.4809]
[1727363066288,21.3923,154.33,154.3,7.77656866]
[1727363066586,21.3923,154.33,154.29,22.6838]
[1727363066776,21.3923,154.33,154.3,1.29590632]
[1727363066969,21.3923,154.33,154.3,7.77660632]
[1727363067287,21.3923,154.33,154.3,6.4807]
[1727363068285,21.3923,154.33,154.31,7.77626553]
[1727363068782,0.5760483,154.34,154.32,6.48]
[1727363068991,0.5760483,154.34,154.32,1.29568704]
[1727363069169,0.5760483,154.34,154.33,7.77512715]
[1727363069377,0.5760483,154.34,154.33,40.09649746]
[1727363069568,0.5760483,154.34,154.33,6.4796]
[1727363070258,0.5760483,154.34,154.31,48.52207031]
[1727363070464,0.5760483,154.34,154.31,16.2007]
[1727363070663,7.0552483,154.34,154.28,45.27941771]
[1727363070975,0.5760483,154.34,154.3,6.4807]
[1727363071687,0.5760483,154.34,154.33,6.4796]
[1727363071883,0.5760483,154.34,154.31,7.77581427]
[1727363072191,0.5760483,154.34,154.31,6.48]
[1727363072882,0.5760483,154.34,154.3,16.2013]
[1727363073087,6.4796,154.33,154.28,6.4816]
[1727363073388,6.48,154.32,154.27,22.687]
[1727363073595,0.5760483,154.34,154.25,6.4829]
[1727363073596,6.4808,154.3,154.25,6.4829]
[1727363073767,6.4804,154.31,154.26,7.77870915]
[1727363073970,6.4804,154.31,154.26,6.4825]
[1727363075088,0.5760483,154.34,154.27,1.29620461]
[1727363075271,7.0555483,154.34,154.29,6.4812]
[1727363075472,0.5760483,154.34,154.3,1.2959815]
[1727363075675,0.5760483,154.34,154.32,6.4799]
[1727363075875,0.5760483,154.34,154.31,6.4804]
[1727363076287,0.5760483,154.34,154.32,1.29573682]
[1727363076597,0.5760483,154.34,154.3,16.2014]
[1727363076786,0.5760483,154.34,154.3,22.6822]
[1727363076787,7.0552483,154.34,154.3,22.6822]
[1727363076977,0.5760483,154.34,154.31,7.77623204]
[1727363077181,0.5760483,154.34,154.31,1.29583204]
[1727363077508,0.5760483,154.34,154.31,6.4803]
[1727363078492,0.5760483,154.34,154.27,29.07541771]
[1727363078493,0.5760483,154.34,154.27,16.205]
[1727363078675,2.1539543,154.34,154.28,6.4817]
[1727363078885,6.4798,154.33,154.28,6.4817]
[1727363079390,7.0552483,154.34,154.29,6.4811]
[1727363079591,7.0552483,154.34,154.3,1.29597639]
[1727363079784,6.4797,154.33,154.28,6.4816]
[1727363080093,2.1539543,154.34,154.27,16.205]
[1727363080094,6.4805,154.31,154.27,16.205]
[1727363080299,6.4809,154.3,154.25,6.4829]
[1727363080802,6.4805,154.31,154.26,6.4825]
[1727363081176,0.5760483,154.34,154.31,6.48]
[1727363081492,0.5760483,154.34,154.28,6.4816]
[1727363081493,6.48,154.32,154.28,6.4816]
[1727363082400,0.5760483,154.34,154.29,1.29597118]
[1727363082701,0.5760483,154.34,154.32,6.4798]
[1727363082881,0.5760483,154.34,154.31,16.2003]
[1727363083285,0.5760483,154.34,154.32,6.4797]
[1727363083483,0.5760483,154.34,154.31,16.2003]
[1727363083692,6.4799,154.33,154.28,36.2039]
[1727363083995,0.5760483,154.34,154.29,6.4812]
[1727363084297,0.5760483,154.34,154.3,7.77642885]
[1727363084469,0.5760483,154.34,154.3,1.29592885]
[1727363084674,0.5760483,154.34,154.31,6.4803]
[1727363084893,0.5760483,154.34,154.3,17.49752885]
[1727363084894,0.5760483,154.34,154.32,6.48]
[1727363085610,0.5760483,154.34,154.33,6.4796]
[1727363085899,0.5760483,154.34,154.33,7.77518478]
[1727363086107,0.5760483,154.34,154.33,8.02616478]
[1727363086283,0.5760483,154.34,154.33,6.4796]
[1727363086683,0.5760483,154.34,154.33,8.0260857]
[1727363086990,0.5760483,154.34,154.33,6.4796]
[1727363087186,0.5760483,154.34,154.33,6.73058]
[1727363087791,0.5760483,154.34,154.33,8.02594633]
[1727363088089,0.1138566,154.36,154.35,6.72968]
[1727363088276,0.1138566,154.36,154.35,35.80509771]
[1727363089501,0.1138566,154.36,154.35,35.55411771]
[1727363089711,0.1138566,154.36,154.34,6.4791]
[1727363089893,0.1138566,154.36,154.32,16.1996]
[1727363090089,0.1138566,154.36,154.33,6.4795]
[1727363090298,0.1138566,154.36,154.34,6.4791]
[1727363090511,0.1138566,154.36,154.32,16.1996]
[1727363090708,0.1138566,154.36,154.33,6.4794]
[1727363090910,6.5922566,154.36,154.32,22.6795]
[1727363091300,0.1138566,154.36,154.33,1.29568757]
[1727363091617,0.1138566,154.36,154.32,16.1996]
[1727363091820,0.1138566,154.36,154.34,6.4788]
[1727363092060,0.1138566,154.36,154.35,7.49273344]
[1727363092397,0.1138566,154.36,154.35,6.4787]
[1727363093419,0.1138566,154.36,154.35,7.77412841]
[1727363093591,0.1138566,154.36,154.35,7.89961841]
[1727363094315,0.1138566,154.36,154.35,28.02510841]
[1727363094491,0.1138566,154.36,154.35,50.506564]
[1727363094699,0.1138566,154.36,154.35,26.72968]
[1727363095023,15.324,154.41,154.36,20.25098]
[1727363095230,6.5798483,154.43,154.41,6.4761]
[1727363095602,6.5798483,154.43,154.4,6.4766]
[1727363096233,6.5798483,154.43,154.39,16.1922]
[1727363096606,6.5798483,154.43,154.37,0.12549]
[1727363096919,6.5798483,154.43,154.4,6.4766]
[1727363097227,6.5798483,154.43,154.42,6.4758]
[1727363097696,0.5760483,154.43,154.42,6.4758]
[1727363098617,0.5760483,154.43,154.42,50.503664]
[1727363098806,0.5760483,154.43,154.42,6.60129]
[1727363099006,0.5760483,154.43,154.42,7.89591944]
[1727363099222,0.5760483,154.43,154.42,6.60129]
[1727363099511,0.5760483,154.43,154.42,6.4758]
[1727363100124,0.5760483,154.43,154.42,7.77051358]
[1727363100325,0.5760483,154.43,154.42,8.02149358]
[1727363101116,0.5760483,154.43,154.42,50.503664]
[1727363101297,0.5760483,154.43,154.42,51.79807529]
[1727363101826,0.1138566,154.46,154.45,50.502364]
[1727363102128,0.1138566,154.46,154.45,79.57778171]
[1727363102301,0.1138566,154.46,154.45,55.80089771]
[1727363102805,0.1138566,154.46,154.45,79.57778171]
[1727363103210,0.1138566,154.46,154.45,6.4745]
[1727363103423,0.1138566,154.46,154.45,20.0]
[1727363103727,0.1138566,154.46,154.38,29.07541771]
[1727363103938,0.1138566,154.46,154.43,6.4753]
[1727363104147,0.1138566,154.46,154.42,6.4755]
[1727363104433,0.1138566,154.46,154.41,16.1903]
[1727363104434,19.76160833,154.48,154.43,6.4753]
[1727363104622,13.28830833,154.48,154.41,16.1903]
[1727363104824,6.4742,154.46,154.41,16.1903]
[1727363105033,6.4737,154.47,154.41,22.6662]
[1727363105221,6.4737,154.47,154.42,6.4757]
[1727363105431,6.4737,154.47,154.43,1.29480184]
[1727363105633,6.4737,154.47,154.41,16.1903]
[1727363105832,6.4738,154.47,154.42,6.4757]
[1727363106144,6.4742,154.46,154.41,16.1903]
[1727363106828,13.28830833,154.48,154.38,22.6708]
[1727363106829,6.4753,154.44,154.38,22.6708]
[1727363107139,23.776884,154.47,154.38,22.671]
[1727363107344,23.776884,154.45,154.38,16.1937]
[1727363107571,23.776884,154.45,154.33,75.51061141]
[1727363107572,6.4758,154.42,154.39,1.29517177]
[1727363107755,6.4758,154.42,154.36,6.4783]
[1727363108044,6.4758,154.42,154.37,6.4778]
[1727363108226,21.577906,154.44,154.36,6.4783]
[1727363108428,6.4758,154.42,154.36,6.4783]
[1727363108818,25.35479,154.43,154.35,16.1966]
[1727363109137,25.35479,154.43,154.36,7.77348731]
[1727363109138,6.4763,154.41,154.36,7.77348731]
[1727363109332,6.4762,154.42,154.37,6.4779]
[1727363109523,13.28830833,154.48,154.38,1.29524617]
[1727363109721,20.0,154.47,154.38,1.29524617]
[1727363109942,13.28830833,154.48,154.39,16.1919]
[1727363110130,13.28830833,154.48,154.4,7.7714341]
[1727363110334,6.4742,154.46,154.4,7.7714341]
[1727363110528,13.28830833,154.48,154.41,16.44078]
[1727363110733,6.1395,154.49,154.43,20.25098]
[1727363111044,6.4733,154.48,154.43,20.25098]
[1727363111234,12.6124,154.49,154.43,42.78879]
[1727363111437,6.1395,154.49,154.45,16.1857]
[1727363111628,17.1992483,154.52,154.46,1.29448129]
[1727363111830,17.1992483,154.52,154.48,6.4729]
[1727363112235,17.1992483,154.52,154.47,22.6571]
[1727363112642,17.1992483,154.52,154.48,6.4732]
[1727363112948,17.1992483,154.52,154.47,22.6571]
[1727363113134,6.4722,154.51,154.45,6.4741]
[1727363113525,17.1992483,154.52,154.47,0.25098]
[1727363113830,17.1992483,154.52,154.42,20.0]
[1727363113831,0.5760483,154.52,154.49,16.43308]
[1727363114030,0.5760483,154.52,154.51,6.472]
[1727363114242,0.5760483,154.52,154.51,8.0169606]
[1727363114446,0.5760483,154.52,154.51,6.72298]
[1727363114627,0.5760483,154.52,154.51,26.72298]
[1727363115030,0.5760483,154.52,154.51,26.59749]
[1727363115462,0.5760483,154.52,154.51,26.72298]
[1727363116474,0.5760483,154.52,154.51,26.472]
[1727363116952,0.5760483,154.52,154.5,26.4724]
[1727363117146,0.5760483,154.52,154.5,20.0]
[1727363117350,0.5760483,154.52,154.49,16.1821]
[1727363117547,0.5760483,154.52,154.49,22.6546]
[1727363117852,0.5760483,154.52,154.49,16.1821]
[1727363118045,0.5760483,154.52,154.48,22.6553]
[1727363118242,0.5760483,154.52,154.42,20.0]
[1727363118455,13.0852,154.51,154.45,16.1862]
[1727363118758,13.0852,154.51,154.45,22.6607]
[1727363118759,29.7047,154.51,154.45,22.6607]
[1727363118966,29.7047,154.51,154.41,135.79014638]
[1727363118967,6.4728,154.5,154.44,6.4748]
[1727363119138,6.4728,154.5,154.41,16.19]
[1727363119139,1.577906,154.49,154.41,16.19]
[1727363119339,6.4736,154.48,154.42,6.4757]
[1727363119854,23.776884,154.5,154.37,32.3888]
[1727363119855,20.0,154.49,154.37,32.3888]
[1727363120058,6.4749,154.45,154.38,6.4772]
[1727363120242,1.577906,154.47,154.38,6.4772]
[1727363120243,6.4751,154.44,154.38,6.4772]
[1727363120450,1.577906,154.44,154.37,16.1938]
[1727363120647,6.4754,154.43,154.37,22.6717]
[1727363120943,6.4749,154.45,154.38,6.4774]
[1727363121845,6.4749,154.45,154.39,1.29514822]
[1727363122044,6.4749,154.45,154.37,16.1938]
[1727363122045,6.4741,154.46,154.4,7.77174764]
[1727363122246,6.4736,154.48,154.41,6.4762]
[1727363122446,1.577906,154.48,154.4,16.1914]
[1727363122653,23.2326,154.51,154.41,20.25098]
[1727363122845,6.4733,154.49,154.42,6.4758]
[1727363123044,23.2326,154.51,154.4,20.0]
[1727363123259,6.4741,154.46,154.4,26.4762]
[1727363123462,6.4742,154.46,154.41,6.4761]
[1727363123663,6.4737,154.47,154.41,6.4761]
[1727363124045,20.0,154.5,154.42,16.1888]
[1727363124269,26.4726,154.5,154.44,6.4749]
[1727363124562,6.4734,154.48,154.43,6.4753]
[1727363125260,20.0,154.5,154.43,1.01226999]
[1727363125436,6.4745,154.46,154.39,17.48762397]
[1727363125642,6.4738,154.47,154.41,6.476]
[1727363125950,23.776884,154.49,154.4,20.0]
[1727363126148,6.4741,154.46,154.41,6.4761]
[1727363126355,6.4747,154.45,154.42,1.29487488]
[1727363126554,6.475,154.44,154.39,16.1927]
[1727363126759,6.4757,154.43,154.38,20.0]
[1727363127156,6.4767,154.4,154.36,16.1956]
[1727363127363,6.4767,154.4,154.37,1.2953962]
[1727363128090,22.5096,154.41,154.37,1.2953962]
[1727363128247,6.477,154.4,154.34,6.4791]
[1727363128447,6.477,154.4,154.33,16.1987]
[1727363128646,6.477,154.4,154.35,6.4786]
[1727363129065,16.0334,154.41,154.33,16.1987]
[1727363129469,6.4767,154.4,154.35,6.4787]
[1727363129675,16.0334,154.41,154.34,1.29540904]
[1727363129879,6.4784,154.36,154.31,6.4804]
[1727363130243,6.4776,154.38,154.33,6.4796]
[1727363130444,6.4776,154.38,154.34,1.2955722]
[1727363130670,6.1728,154.4,154.34,1.2955722]
[1727363130871,6.1728,154.4,154.37,6.4778]
[1727363131182,6.1728,154.4,154.36,22.6734]
[1727363131387,12.6495,154.4,154.36,16.1952]
[1727363132076,6.4771,154.39,154.33,16.1988]
[1727363132272,6.478,154.37,154.33,20.0]
[1727363132474,6.4784,154.36,154.31,6.4803]
[1727363133275,6.4784,154.36,154.32,6.48]